[Event "British Championship 2024"]
[Site "Hull"]
[Date "2024.07.31"]
[Round "3.8"]
[White "Ghasi, Ameet K"]
[Black "Kalavannan, Koby"]
[Result "1-0"]
[Annotator "TA"]
[ECO "A37"]
[WhiteElo "2496"]
[BlackElo "2265"]
[PlyCount "77"]
[EventDate "2024.07.31"]
[EventCountry "GBR"]
[SourceTitle "playchess.com"]
[Source "ChessBase"]
[SourceQuality "1"]
[TimeControl "40/5400+30:1800+30"]

{[%evp 19,77,0,0,0,0,0,7,9,28,27,22,15,10,5,19,20,17,0,5,8,8,0,5,-22,0,-35,-34,-75,-53,-88,-106,-110,-108,-103,-111,-270,-75,-414,-389,-368,-201,-221,-169,-326,-302,-296,144,187,154,168,29977,29978,29978,29979,29979,29980,29979,29980,29980,29981]} 1. c4 {[%emt 0:01:22]} c5 {[%emt 0:00:34]} 2. g3 {[%emt 0:00:32]} g6 {[%emt 0:00:15]} 3. Bg2 {[%emt 0:00:16]} Bg7 {[%emt 0:00:19]} 4. Nc3 {[%emt 0:00:11]} Nc6 {[%emt 0:00:10]} 5. Nf3 {[%emt 0:00:03]} d6 {[%emt 0:00:24]} 6. O-O {[%emt 0:00:40]} e5 {[%emt 0:00:12]} 7. a3 {[%emt 0:01:24]} a5 {[%emt 0:00:18]} 8. d3 {[%emt 0:00:53]} Nge7 {[%emt 1:32:18]} 9. Rb1 {[%emt 0:00:23]} O-O {[%emt 0:00:00]} 10. Bd2 {[%emt 0:00:42]} Rb8 {[%emt 0:00:00]} 11. Nb5 {[%emt 0:00:54]} d5 {[%emt 0:00:00]} 12. cxd5 {[%emt 0:00:10]} Nxd5 {[%emt 0:00:00]} 13. Qb3 {[%emt 0:00:22][%cal Of3e5] The position is equal.} Nde7 {[%emt 0:00:00]} 14. Qc2 {[%emt 0:20:46]} b6 {[%emt 0:00:00]} 15. b4 {[%emt 0:02:32]} axb4 {[%emt 0:00:00]} 16. axb4 {[%emt 0:01:34]} Nd4 {[%emt 0:00:00]} 17. Nfxd4 {[%emt 0:09:15]} cxd4 {[%emt 0:00:00]} 18. Bg5 {[%emt 0:08:17]} f6 $36 {[%emt 0:00:00][%mdl 2048] Black is pushing.} 19. Bd2 {[%emt 0:10:55]} Bb7 {[%emt 0:00:00]} 20. Bxb7 {[%emt 0:02:58]} Rxb7 {[%emt 0:00:00]} 21. Rfc1 {[%emt 0:00:50]} Qd7 {[%emt 0:00:00]} 22. Qa2+ {[%emt 0:02:23]} Kh8 {[%emt 0:00:00]} 23. Qa6 {[%emt 0:00:55]} Rfb8 {[%emt 0:00:00]} 24. Rc4 {[%emt 0:01:37]} Bf8 {[%emt 0:00:00]} 25. Rbc1 {[%emt 0:02:39]} Nd5 {[%emt 0:00:00] Prevents Rc7} 26. Qa4 {[%emt 0:02:48]} h5 {[%emt 0:00:00]} 27. Rc6 $2 {[%emt 0:05:22] [#]} (27. Kg2 $17) 27... h4 $2 {[%emt 0:00:00]} 28. Kg2 $2 {[%emt 0:02:19][%mdl 8192] [#]} (28. Qb3 $17) 28... Bc5 $1 $19 {[%emt 0:00:00][%mdl 512]} 29. Nxd4 {[%emt 0:09:39]} (29. Na3 b5 30. Qd1 Qxc6 $19 (30... Nc3 $2 31. Bxc3 Qxc6+ 32. e4 $19)) 29... exd4 {[%emt 0:00:00]} (29... Bxd4 30. Rc8+ Rxc8 31. Qxd7 Rxd7 32. Rxc8+ Kg7 33. f4 $19) (29... h3+ $142 30. Kf1 Bxd4) 30. bxc5 {[%emt 0:00:39][%cal Bb4c5,Bc5b6,Bb6b7][%mdl 32]} Ra7 {[%emt 0:07:24]} 31. Qb5 {[%emt 0:01:08]} (31. Qxd4 {was the only chance.} Qxc6 32. e4 h3+ 33. Kf3) 31... h3+ {[%emt 0:01:24]} ({But not} 31... Nc7 $2 32. Qxb6 Rxb6 33. cxb6 h3+ 34. Kf1 $18) 32. Kf1 {[%emt 0:01:04][%cal Rc5b6]} Nc7 $2 {[%emt 0:00:56] [#]} (32... Ra2 $1 $19 {[%cal Ra2d2]} 33. cxb6 Rxd2) 33. Qxb6 $1 $16 {[%emt 0:00:45][%mdl 512]} Rxb6 {[%emt 0:00:52]} (33... Na6 34. Rd6 Qe7 35. Re6 (35. Qc6 Re8 $18) 35... Rxb6 36. Rxe7 $18) 34. cxb6 {[%emt 0:00:01][%cal Rc6c7]} Ra1 $2 {[%emt 0:00:29]} (34... Nd5 $18 35. bxa7 Qxa7) 35. Rxc7 {[%emt 0:03:01] White mates.} Rxc1+ {[%emt 0:00:02]} 36. Bxc1 {[%emt 0:00:39]} Qa4 {[%emt 0:00:01] [#]} 37. Bd2 $1 {[%emt 0:02:23]} Qa1+ {[%emt 0:02:50]} 38. Be1 {[%emt 0:00:08]} Qa8 {[%emt 0:00:29]} 39. b7 {[%emt 0:00:14] Weighted Error Value: White=0.34/Black=0.54.  Loses game:     	White=1     	---        Missed win:     	---       	Black=2      Mistake:       	White=2     	Black=2      Inaccurate:     	White=4     	---        OK:         	White=6     	Black=10     Best:        	White=5     	Black=2      Brilliant:      	White=1     	---} 1-0

[Event "British Championship 2024"]
[Site "Hull"]
[Date "2024.07.31"]
[Round "3.9"]
[White "Davies, Nigel R"]
[Black "Bazakutsa, Svyatoslav"]
[Result "0-1"]
[Annotator "RC"]
[ECO "D04"]
[WhiteElo "2325"]
[BlackElo "2470"]
[PlyCount "80"]
[EventDate "2024.07.31"]
[EventCountry "GBR"]
[SourceTitle "playchess.com"]
[Source "ChessBase"]
[SourceQuality "1"]
[TimeControl "40/5400+30:1800+30"]

1. d4 {[%emt 0:00:02]} Nf6 {[%emt 0:03:37]} 2. Nf3 {[%emt 0:00:11]} g6 {[%emt 0:00:07]} 3. Nbd2 {[%emt 0:00:41]} d5 {[%emt 0:02:21]} 4. b3 {[%emt 0:00:25]} Bg7 {[%emt 0:02:20]} 5. Bb2 {[%emt 0:00:08]} O-O {[%emt 0:00:12]} 6. e3 {[%emt 0:00:06]} b6 {[%emt 0:08:09]} 7. c4 {[%emt 0:01:50]} Bb7 {[%emt 0:00:57]} 8. Be2 {[%emt 0:00:27]} Nbd7 {[%emt 0:01:41]} 9. O-O {[%emt 0:00:18]} c5 {[%emt 0:00:13]} 10. dxc5 {[%emt 0:24:00]} Nxc5 {[%emt 0:02:49]} 11. b4 {[%emt 0:01:24]} Nce4 {[%emt 0:05:19]} 12. Nxe4 {[%emt 0:03:31]} Nxe4 {[%emt 0:00:11]} 13. Bxg7 {[%emt 0:00:10]} Kxg7 {[%emt 0:00:10]} 14. Qd4+ {[%emt 0:02:21]} f6 {[%emt 0:05:37]} 15. Rfd1 {[%emt 0:01:32]} dxc4 {[%emt 0:14:01]} 16. Qxc4 {[%emt 0:01:33]} Nd6 {[%emt 0:01:42]} 17. Qb3 {[%emt 0:00:29]} Bxf3 {[%emt 0:03:07]} 18. Bxf3 {[%emt 0:00:24]} Rc8 {[%emt 0:00:38]} 19. a4 {[%emt 0:12:44]} Qc7 {[%emt 0:05:40]} 20. Qe6 {[%emt 0:08:10]} Rfd8 {[%emt 0:12:03]} 21. a5 {[%emt 0:16:37]} b5 {[%emt 0:04:43]} 22. a6 {[%emt 0:01:09]} Qd7 {[%emt 0:01:10]} 23. Qb3 {[%emt 0:04:22]} Qf5 {[%emt 0:01:09]} 24. h3 {[%emt 0:05:10]} h5 {[%emt 0:00:53]} 25. Qd5 {[%emt 0:03:33]} Qxd5 {[%emt 0:14:04]} 26. Rxd5 {[%emt 0:00:17]} Rc4 {[%emt 0:00:27]} 27. Rb1 {[%emt 0:00:54]} Rc2 {[%emt 0:04:28]} 28. Bd1 {[%emt 0:03:09]} Ra2 {[%emt 0:01:15]} 29. Rc1 {[%emt 0:00:09]} Rxa6 {[%emt 0:00:53]} 30. Rc7 {[%emt 0:03:02]} Kf7 {[%emt 0:02:54]} 31. Be2 {[%emt 0:01:19]} Ra1+ {[%emt 0:00:25]} 32. Kh2 {[%emt 0:00:11]} a6 {[%emt 0:00:54]} 33. Ra7 {[%emt 0:00:28]} h4 {[%emt 0:00:59]} 34. Rd4 {[%emt 0:00:44]} Rh8 {[%emt 0:00:59]} 35. Bf3 {[%emt 0:00:19]} f5 {[%emt 0:00:22]} 36. e4 {[%emt 0:01:48]} Kf6 {[%emt 0:00:08]} 37. exf5 {[%emt 0:00:42]} gxf5 {[%emt 0:01:28]} 38. Rd1 {[%emt 0:02:28]} Rxd1 {[%emt 0:00:42]} 39. Bxd1 {[%emt 0:00:06]} Rc8 {[%emt 0:00:05]} 40. Rxa6 {[%emt 0:00:10]} Rc4 {[%emt 0:00:19]} 0-1

[Event "British Championship 2024"]
[Site "Hull"]
[Date "2024.07.31"]
[Round "3.10"]
[White "Williams, Simon K"]
[Black "Yao, Lan"]
[Result "1/2-1/2"]
[Annotator "TA"]
[ECO "D00"]
[WhiteElo "2450"]
[BlackElo "2325"]
[PlyCount "96"]
[EventDate "2024.07.31"]
[EventCountry "GBR"]
[SourceTitle "playchess.com"]
[Source "ChessBase"]
[SourceQuality "1"]
[TimeControl "40/5400+30:1800+30"]

{[%evp 14,96,32,45,32,34,34,6,5,5,0,13,35,0,44,26,20,30,27,22,34,0,0,0,27,20,70,66,74,0,36,17,24,10,43,40,116,120,114,104,148,89,91,41,55,58,54,27,78,76,93,29,27,29,25,0,0,0,12,0,0,0,0,-20,-16,-12,0,0,0,-8,-17,-43,0,0,0,-14,-10,-20,-20,-20,0,0,0,0,0]} 1. d4 {[%emt 0:00:13]} Nf6 {[%emt 0:00:03]} 2. Bf4 {[%emt 0:00:28]} d5 {[%emt 0:00:06]} 3. e3 {[%emt 0:00:50]} c5 {[%emt 0:00:14]} 4. Nd2 {[%emt 0:05:01]} Nc6 {[%emt 0:00:12]} 5. c3 {[%emt 0:00:59]} Qb6 {[%emt 0:07:48]} 6. Qb3 {[%emt 0:00:53] D00: 1 d4 d5: Unusual lines.} c4 {[%emt 0:05:13]} 7. Qc2 {[%emt 0:00:29]} Bg4 {[%emt 0:03:57]} 8. b3 {[%emt 0:06:42]} cxb3 $1 {[%emt 0:03:52]} 9. axb3 {[%emt 0:00:05]} Rc8 {[%emt 0:03:58]} 10. Ngf3 {[%emt 0:04:22]} e6 {[%emt 0:01:37]} 11. Qb2 {[%emt 0:00:29]} Be7 {[%emt 0:10:54]} 12. Bd3 {[%emt 0:00:55]} O-O {[%emt 0:01:07]} 13. O-O {[%emt 0:01:09]} Bh5 {[%emt 0:04:24]} 14. Rab1 $146 {[%emt 0:15:59]} ({Predecessor:} 14. Ne5 Nxe5 15. Bxe5 Nd7 16. Bg3 Bg6 17. Bxg6 hxg6 18. c4 dxc4 19. Qc2 cxb3 20. Qxb3 Qxb3 21. Nxb3 {1-0 Koellner,R (2376)-Nascimento,P (1978) Titled Tuesday intern op 30th June blitz 2020 (7)}) 14... Bg6 {[%emt 0:01:14]} 15. Bxg6 {[%emt 0:00:11]} hxg6 {[%emt 0:00:03]} 16. h3 {[%emt 0:01:56]} Qd8 {[%emt 0:12:05]} 17. Ne5 {[%emt 0:09:51]} Nxe5 {[%emt 0:01:13]} 18. Bxe5 {[%emt 0:00:17]} Nd7 {[%emt 0:00:27]} 19. Bg3 {[%emt 0:00:52]} f5 {[%emt 0:06:18]} (19... a5 $11) 20. c4 {[%emt 0:05:52]} g5 {[%emt 0:02:24]} 21. f3 {[%emt 0:00:12]} ({White should play} 21. Nf3 $16) 21... Bf6 {[%emt 0:02:57]} 22. Qa3 {[%emt 0:04:46]} f4 {[%emt 0:09:34]} 23. Bf2 {[%emt 0:01:57]} Qb6 {[%emt 0:00:56]} 24. c5 {[%emt 0:03:30]} Qc6 {[%emt 0:01:33]} (24... Qb5 $14) 25. b4 $16 {[%emt 0:01:19]} (25. Qxa7 $2 {perishes.} fxe3 (25... Ra8 $2 26. Qa4 $19) 26. Bxe3 Ra8 $19) 25... fxe3 {[%emt 0:02:41]} 26. Qxe3 {[%emt 0:04:19]} e5 {[%emt 0:00:53] [#]} 27. Qb3 {[%emt 0:02:46]} (27. Nb3 $142 $1) 27... Kh8 $16 {[%emt 0:10:20]} 28. b5 {[%emt 0:02:02]} ({Better is} 28. Qa2 $16) 28... Qe6 $1 $14 {[%emt 0:00:06]} 29. Ne4 {[%emt 0:06:19]} exd4 {[%emt 0:00:47]} 30. Nxf6 {[%emt 0:00:08]} gxf6 {[%emt 0:02:42]} (30... Nxc5 $11 31. Qxd5 Qxf6) 31. Bxd4 {[%emt 0:04:53]} Nxc5 {[%emt 0:00:06]} 32. Qc2 {[%emt 0:02:50]} (32. Qa3 $16 b6 33. Qxa7) 32... Ne4 $11 {[%emt 0:01:53]} 33. Qe2 {[%emt 0:01:28]} Nc5 {[%emt 0:00:06]} 34. Qa2 {[%emt 0:05:49]} Nd3 {[%emt 0:02:18]} 35. Qxa7 {[%emt 0:01:39]} Rf7 {[%emt 0:02:03]} 36. Qa2 {[%emt 0:01:15]} Rfc7 {[%emt 0:01:00]} 37. Qd2 {[%emt 0:01:07]} Nf4 {[%emt 0:00:09]} 38. Rb2 {[%emt 0:01:33]} Qf5 {[%emt 0:00:24]} 39. Qe3 {[%emt 0:00:34]} Kg7 {[%emt 0:01:31]} 40. Rd2 {[%emt 0:00:58]} Kh6 {[%emt 0:00:43]} 41. Kh2 {[%emt 0:04:45]} Kg6 {[%emt 0:09:06]} 42. Kg1 {[%emt 0:06:09]} (42. Rfd1 {is interesting.} Kf7 43. Re1 Ng6 44. Qe2) 42... Kf7 {[%emt 0:06:51]} 43. Re1 $1 {[%emt 0:01:12]} Kg6 {[%emt 0:01:10]} 44. b6 {[%emt 0:03:01]} Rc1 {[%emt 0:02:14]} 45. Rxc1 {[%emt 0:02:13]} Rxc1+ {[%emt 0:00:03]} 46. Kh2 {[%emt 0:00:10]} Qe6 {[%emt 0:01:51]} 47. Qxe6 {[%emt 0:01:22]} Nxe6 {[%emt 0:00:02]} 48. Bf2 {[%emt 0:00:14]} d4 {[%emt 0:01:02]} 1/2-1/2

[Event "British Championship 2024"]
[Site "Hull"]
[Date "2024.07.31"]
[Round "3.11"]
[White "Balaji, Aaravamudhan"]
[Black "Merry, Alan B"]
[Result "1/2-1/2"]
[Annotator "TA"]
[ECO "E49"]
[WhiteElo "2346"]
[BlackElo "2429"]
[PlyCount "56"]
[EventDate "2024.07.31"]
[EventCountry "GBR"]
[SourceTitle "playchess.com"]
[Source "ChessBase"]
[SourceQuality "1"]
[TimeControl "40/5400+30:1800+30"]

{[%evp 23,56,0,0,5,15,0,5,0,7,0,8,0,0,0,-20,-15,0,-32,28,0,0,0,0,0,0,0,0,0,0,0,0,0,0,0,0]} 1. d4 {[%emt 0:00:01]} Nf6 {[%emt 0:00:06]} 2. c4 {[%emt 0:00:06]} e6 {[%emt 0:00:03]} 3. Nc3 {[%emt 0:00:04]} Bb4 {[%emt 0:00:03]} 4. e3 {[%emt 0:00:04]} O-O {[%emt 0:00:06]} 5. Bd3 {[%emt 0:00:01]} d5 {[%emt 0:00:05]} 6. a3 {[%emt 0:00:06]} Bxc3+ {[%emt 0:00:33]} 7. bxc3 {[%emt 0:00:01]} dxc4 {[%emt 0:00:38]} 8. Bxc4 {[%emt 0:00:02]} c5 {[%emt 0:00:11]} 9. Ne2 {[%emt 0:00:11]} Qc7 {[%emt 0:01:36]} 10. Ba2 {[%emt 0:00:02]} Nc6 {[%emt 0:03:46]} 11. Ng3 {[%emt 0:01:18]} Rd8 {[%emt 0:09:44]} 12. O-O {[%emt 0:00:54]} b6 {[%emt 0:02:49]} 13. Qe2 {[%emt 0:00:43]} Bb7 {[%emt 0:10:24]} 14. Rd1 {[%emt 0:11:10]} Rac8 {[%emt 0:01:18]} 15. Bb2 {[%emt 0:04:16]} Na5 {[%emt 0:14:07]} 16. e4 {[%emt 0:19:08]} Qc6 {[%emt 0:31:47]} 17. f3 {[%emt 0:07:18]} Qa4 {[%emt 0:01:32]} 18. d5 {[%emt 0:15:02]} exd5 {[%emt 0:01:41]} 19. Nf5 {[%emt 0:00:51]} Qd7 {[%emt 0:10:03]} 20. Bc1 {[%emt 0:08:47]} Ne8 {[%emt 0:04:55]} ({Better is} 20... c4 $15) 21. Bg5 {[%emt 0:05:10][%cal Oa2d5][%mdl 1024] White has compensation.} f6 {[%emt 0:00:07] The position is equal.} 22. Bf4 {[%emt 0:00:01]} c4 {[%emt 0:02:41]} 23. Bb1 {[%emt 0:05:40] [#] Black must now prevent exd5.} Qe6 {[%emt 0:02:12]} 24. Nd4 {[%emt 0:03:29] Inhibits Nb3.} Qe7 {[%emt 0:01:00]} 25. Nf5 {[%emt 0:05:52]} Qe6 {[%emt 0:00:43]} 26. Nd4 {[%emt 0:03:17] Dodges Nb3} Qe7 {[%emt 0:00:04]} 27. Nf5 {[%emt 0:01:21]} Qe6 {[%emt 0:00:28]} 28. Nd4 {[%emt 0:07:52]} Qe7 {[%emt 0:00:05] An uneventful encounter.   Weighted Error Value: White=0.05 (flawless) /Black=0.07 (flawless) .  Mistake:       	---       	Black=1      Inaccurate:     	White=2     	---        OK:         	White=7     	Black=12     Best:        	White=1     	Black=2} 1/2-1/2

[Event "British Championship 2024"]
[Site "Hull"]
[Date "2024.07.31"]
[Round "3.12"]
[White "Hobson, Kenneth"]
[Black "Pert, Richard G"]
[Result "1/2-1/2"]
[Annotator "TA"]
[ECO "B13"]
[WhiteElo "2227"]
[BlackElo "2415"]
[PlyCount "97"]
[EventDate "2024.07.31"]
[EventCountry "GBR"]
[SourceTitle "playchess.com"]
[Source "ChessBase"]
[SourceQuality "1"]
[TimeControl "40/5400+30:1800+30"]

{[%evp 10,97,34,20,36,23,27,27,35,19,30,40,45,53,49,30,39,31,73,47,99,100,96,87,85,16,33,30,59,54,65,66,68,54,71,47,53,62,64,59,58,59,58,45,57,57,62,52,52,0,52,29,49,33,50,52,56,28,29,32,31,31,31,31,31,29,29,35,35,0,15,18,43,43,43,43,43,43,43,43,43,43,43,43,43,0,18,0,43,0]} 1. e4 {[%emt 0:00:03]} c6 {[%emt 0:00:13]} 2. d4 {[%emt 0:00:37]} d5 {[%emt 0:00:11]} 3. exd5 {[%emt 0:00:30]} cxd5 {[%emt 0:00:08]} 4. Bd3 {[%emt 0:00:27]} Nc6 {[%emt 0:00:20]} 5. c3 {[%emt 0:00:45]} Qc7 {[%emt 0:00:54]} 6. h3 {[%emt 0:01:03]} e5 {[%emt 0:01:31]} 7. dxe5 {[%emt 0:00:46]} Nxe5 {[%emt 0:01:54]} 8. Bc2 {[%emt 0:01:24][%cal Og1f3]} Bd6 {[%emt 0:06:08] White has an edge.} 9. Nf3 {[%emt 0:03:35]} Nxf3+ {[%emt 0:03:35]} 10. Qxf3 {[%emt 0:00:07]} Ne7 {[%emt 0:00:39]} 11. Be3 {[%emt 0:06:53]} O-O {[%emt 0:04:12]} 12. Nd2 {[%emt 0:03:20]} Be6 {[%emt 0:16:30]} 13. Nb3 {[%emt 0:04:09]} Ng6 {[%emt 0:06:45]} 14. Nd4 {[%emt 0:04:08]} a6 {[%emt 0:06:50]} (14... Ne5 $14 15. Qe2 Nc4) 15. Qh5 $16 {[%emt 0:04:06]} Rae8 {[%emt 0:10:35]} 16. O-O {[%emt 0:02:04] White is more active.} Bc8 {[%emt 0:04:49]} 17. Bxg6 {[%emt 0:09:02]} (17. Nf3 $16) 17... hxg6 $11 {[%emt 0:03:41]} 18. Qxd5 {[%emt 0:00:31]} Rd8 {[%emt 0:01:36]} 19. Qb3 {[%emt 0:03:00]} Qe7 {[%emt 0:01:06]} 20. Rad1 {[%emt 0:11:43]} Rfe8 {[%emt 0:06:22]} 21. Rfe1 {[%emt 0:04:55]} Bc7 {[%emt 0:05:48]} 22. Nf3 {[%emt 0:02:37]} Be6 {[%emt 0:01:14]} 23. Qa4 {[%emt 0:01:31]} (23. Qxb7 $2 Bh2+ (23... Bxa2 $2 {perishes.} 24. Qxa6 Rxd1 25. Rxd1 $18) 24. Kxh2 Qxb7 $19) 23... Bd7 {[%emt 0:08:40]} 24. Qh4 {[%emt 0:02:13]} Qxh4 {[%emt 0:00:55]} 25. Nxh4 {[%emt 0:01:32]} Be6 {[%emt 0:00:06]} 26. a3 {[%emt 0:02:46]} a5 {[%emt 0:01:53][%cal Ba6a5,Ba5a4][%mdl 32]} 27. Nf3 {[%emt 0:02:05]} a4 {[%emt 0:00:12]} 28. Nd4 {[%emt 0:01:51]} Bc4 {[%emt 0:00:10]} 29. Nf3 {[%emt 0:02:38]} (29. h4 $14) 29... f6 {[%emt 0:04:56]} (29... Be6 $1 $11) 30. Rd4 {[%emt 0:02:23]} b5 {[%emt 0:00:40]} 31. Red1 {[%emt 0:00:49]} Rxd4 {[%emt 0:00:08]} 32. Rxd4 {[%emt 0:00:27]} Re7 {[%emt 0:02:21]} 33. Rd2 {[%emt 0:03:01]} g5 {[%emt 0:00:40]} 34. Bc5 {[%emt 0:01:51]} Re8 {[%emt 0:00:07]} 35. g3 {[%emt 0:02:16]} Be6 {[%emt 0:00:40]} 36. Re2 {[%emt 0:03:56]} Kf7 {[%emt 0:00:45]} 37. Nd4 {[%emt 0:01:53]} Bc4 {[%emt 0:01:05]} 38. Rxe8 {[%emt 0:01:06]} Kxe8 {[%emt 0:00:02][%mdl 4096] Endgame. KBB-KBN} 39. g4 {[%emt 0:00:45]} Be5 {[%emt 0:00:49]} 40. Nf5 {[%emt 0:01:02]} g6 {[%emt 0:00:34]} 41. Ne3 {[%emt 0:33:56]} Bf4 {[%emt 0:08:40]} 42. Nxc4 {[%emt 0:00:00]} bxc4 $14 {[%emt 0:00:02] KB-KB} 43. Kg2 {[%emt 0:00:00] Hoping for Kf3.} Bc1 {[%emt 0:03:29]} 44. Kf3 {[%emt 0:00:00] [#] Ke4 would now be deadly.} f5 {[%emt 0:00:27]} 45. Ke2 {[%emt 0:00:00]} Kf7 {[%emt 0:03:41]} 46. Kd1 {[%emt 0:00:00]} Bf4 {[%emt 0:00:08]} (46... Bxb2 $2 {too greedy.} 47. Kc2 Ba1 48. Bd4 $18) 47. Ke2 {[%emt 0:00:00] And now gxf5 would win.} Bc1 {[%emt 0:00:04]} 48. Kd1 {[%emt 0:00:00]} Bf4 {[%emt 0:00:08]} (48... Bxb2 $2 {loses.} 49. Kc2 Ke6 50. Kxb2 $18) 49. Ke2 {[%emt 0:00:00] Weighted Error Value: White=0.10 (very precise) /Black=0.09 (flawless) .  Mistake:       	White=2     	Black=2      Inaccurate:     	White=4     	Black=2      OK:         	White=20    	Black=18} 1/2-1/2

[Event "British Championship 2024"]
[Site "Hull"]
[Date "2024.07.31"]
[Round "3.13"]
[White "Motwani, Paul"]
[Black "Salmons, Calum"]
[Result "0-1"]
[Annotator "RC"]
[ECO "D40"]
[WhiteElo "2414"]
[BlackElo "1999"]
[PlyCount "84"]
[EventDate "2024.07.31"]
[EventCountry "GBR"]
[SourceTitle "playchess.com"]
[Source "ChessBase"]
[SourceQuality "1"]
[TimeControl "40/5400+30:1800+30"]

1. Nf3 {[%emt 0:00:04]} c5 {[%emt 0:04:16]} 2. c4 {[%emt 0:00:53]} Nc6 {[%emt 0:00:35]} 3. Nc3 {[%emt 0:01:01]} e6 {[%emt 0:00:57]} 4. e3 {[%emt 0:01:50]} d5 {[%emt 0:05:25]} 5. d4 {[%emt 0:00:36]} Nf6 {[%emt 0:01:06]} 6. a3 {[%emt 0:00:38]} Be7 {[%emt 0:04:46]} 7. dxc5 {[%emt 0:03:40]} Bxc5 {[%emt 0:01:49]} 8. b4 {[%emt 0:01:25]} Bb6 {[%emt 0:01:21]} 9. Bb2 {[%emt 0:02:07]} O-O {[%emt 0:07:19]} 10. Qc2 {[%emt 0:04:35]} Qe7 {[%emt 0:07:09]} 11. g4 {[%emt 0:09:08]} d4 {[%emt 0:16:33]} 12. Na4 {[%emt 0:05:10]} dxe3 {[%emt 0:12:43]} 13. Nxb6 {[%emt 0:01:24]} axb6 {[%emt 0:01:35]} 14. g5 {[%emt 0:08:15]} Ng4 {[%emt 0:05:52]} 15. fxe3 {[%emt 0:08:19]} e5 {[%emt 0:01:21]} 16. b5 {[%emt 0:01:46]} Na5 {[%emt 0:13:40]} 17. Qc3 {[%emt 0:08:23]} Qc5 {[%emt 0:00:54]} 18. Bc1 {[%emt 0:07:47]} e4 {[%emt 0:00:46]} 19. h3 {[%emt 0:00:56]} exf3 {[%emt 0:00:57]} 20. hxg4 {[%emt 0:00:07]} Bxg4 {[%emt 0:02:34]} 21. Kf2 {[%emt 0:06:39]} Rfe8 {[%emt 0:01:21]} 22. Bd3 {[%emt 0:04:49]} Bf5 {[%emt 0:01:30]} 23. Bxf5 {[%emt 0:00:57]} Qxf5 {[%emt 0:00:01]} 24. Bb2 {[%emt 0:00:24]} Qg6 {[%emt 0:01:34]} 25. Rh6 {[%emt 0:12:47]} Qxg5 {[%emt 0:01:36]} 26. Rg1 {[%emt 0:00:57]} Qxh6 {[%emt 0:00:54]} 27. Rxg7+ {[%emt 0:00:28]} Kf8 {[%emt 0:00:06]} 28. Rg8+ {[%emt 0:00:38]} Ke7 {[%emt 0:00:01]} 29. Qe5+ {[%emt 0:00:25]} Qe6 {[%emt 0:03:23]} 30. Qc7+ {[%emt 0:03:19]} Qd7 {[%emt 0:00:01]} 31. Bf6+ {[%emt 0:03:38]} Kxf6 {[%emt 0:00:01]} 32. Qxd7 {[%emt 0:00:08]} Rxg8 {[%emt 0:00:02]} 33. Qd6+ {[%emt 0:02:10]} Kg7 {[%emt 0:00:01]} 34. Qe5+ {[%emt 0:01:09]} f6 {[%emt 0:03:18]} 35. Qc7+ {[%emt 0:00:27]} Kh8 {[%emt 0:01:40]} 36. Qxb6 {[%emt 0:00:15]} Nxc4 {[%emt 0:00:41]} 37. Qxf6+ {[%emt 0:00:09]} Rg7 {[%emt 0:00:00]} 38. Kxf3 {[%emt 0:01:23]} Re8 {[%emt 0:00:44]} 39. Qd4 {[%emt 0:00:41]} Nxe3 {[%emt 0:00:24]} 40. a4 {[%emt 0:00:17]} Nc2 {[%emt 0:00:53]} 41. Qb6 {[%emt 0:04:55]} Rf7+ {[%emt 0:03:42]} 42. Kg3 {[%emt 0:00:47]} Rg8+ {[%emt 0:00:19]} 0-1